fUSD/lending_fUSD_20240215
["ID","MTS","AMOUNT","RATE_DAILY","PERIOD"]
[314096956,1707975033121,-266.06488405,0.00039,30]
[314096957,1707975033130,-4014.66655608,0.00039,2]
[314096958,1707975033139,-167.51,0.00039028,2]
[314096959,1707975033149,-283.8577092,0.00039043,11]
[314096960,1707975033158,-1000.0,0.00039086,10]
[314096961,1707975033167,-151.021518,0.00039098,19]
[314096962,1707975033176,-200.0,0.00039114,15]
[314096963,1707975033185,-1447.91754127,0.00039131,9]
[314096964,1707975033195,-800.0,0.00039135,10]
[314096965,1707975033204,-500.0,0.00039142,7]
[314096966,1707975033213,-500.0,0.00039142,7]
[314096967,1707975033222,-500.0,0.00039142,7]
[314096968,1707975033231,-206.38686142,0.00039142,7]
[314096969,1707975033241,-655.2,0.00039142,7]
[314096970,1707975033250,-500.0,0.00039142,7]
[314096971,1707975033259,-500.0,0.00039142,7]
[314096972,1707975033268,-500.0,0.00039142,7]
[314096973,1707975033281,-500.0,0.00039142,7]
[314096974,1707975033290,-500.0,0.00039142,7]
[314096975,1707975033300,-500.0,0.00039142,7]
[314096976,1707975033309,-500.0,0.00039142,7]
[314096977,1707975033318,-500.0,0.00039142,7]
[314096978,1707975033327,-500.0,0.00039142,7]
[314096979,1707975033336,-500.0,0.00039142,7]
[314096980,1707975033346,-500.0,0.00039142,7]
[314096981,1707975033355,-818.97,0.00039142,7]
[314096982,1707975033365,-500.0,0.00039142,7]
[314096983,1707975033374,-500.0,0.00039142,7]
[314096984,1707975033384,-500.0,0.00039142,7]
[314096985,1707975033394,-500.0,0.00039142,7]
[314096986,1707975033403,-500.0,0.00039142,7]
[314096987,1707975033412,-500.0,0.00039142,7]
[314096988,1707975033422,-500.0,0.00039142,7]
[314096989,1707975033431,-500.0,0.00039142,7]
[314096990,1707975033441,-576.13,0.00039142,7]
[314096991,1707975033450,-500.0,0.00039142,7]
[314096992,1707975033460,-500.0,0.00039142,7]
[314096993,1707975033469,-500.0,0.00039142,7]
[314096994,1707975033478,-500.0,0.00039142,7]
[314096995,1707975033487,-383.34754169,0.00039142,7]
[314096996,1707975033497,-507.72,0.00039142,7]
[314096997,1707975033506,-500.0,0.00039142,7]
[314096998,1707975033515,-540.31,0.00039142,7]
[314096999,1707975033525,-500.0,0.00039142,7]
[314097000,1707975033534,-500.0,0.00039143,7]
[314097001,1707975033543,-521.48370657,0.00039143,7]
[314097002,1707975033553,-500.0,0.00039143,7]
[314097003,1707975033562,-500.0,0.00039143,7]
[314097004,1707975033571,-500.0,0.00039143,7]
[314097005,1707975033581,-500.0,0.00039143,7]
[314097006,1707975033590,-500.0,0.00039143,7]
[314097007,1707975033599,-153.701744,0.00039144,2]
[314097008,1707975033608,-200.0,0.00039189,20]
[314097009,1707975033617,-815.56422559,0.00039194,2]
[314097010,1707975033627,-151.021518,0.00039198,19]
[314097011,1707975033637,-1000.0,0.000392,22]
[314097012,1707975033646,-200.0,0.00039242,20]
[314097013,1707975033655,-531.0,0.00039243,7]
[314097014,1707975033664,-214.02562295,0.00039243,7]
[314097015,1707975033674,-500.0,0.00039243,7]
[314097016,1707975033683,-1087.26691748,0.0003926,2]
[314097017,1707975033693,-265.2,0.0003926,2]
[314097018,1707975033864,-160.0,0.00039285,2]
[314097019,1707975033874,-335.469811,0.00039293,2]
[314097020,1707975033884,-200.0,0.00039295,20]
[314097021,1707975033894,-151.021518,0.00039298,20]
[314097022,1707975033903,-153.92,0.000393,3]
[314097023,1707975033912,-153.92,0.000393,3]
[314097024,1707975033922,-153.92,0.000393,3]
[314097025,1707975033932,-153.92,0.000393,3]
[314097026,1707975033941,-403.93,0.00039322,2]
[314097027,1707975033950,-707.45455629,0.00039324,2]
[314097028,1707975033959,-500.0,0.00039342,2]
[314097029,1707975033968,-28364.2197,0.00039342,2]
[314097030,1707975033977,-472.4348,0.00039342,2]
[314097031,1707975033987,-800.0,0.00039348,10]
[314097032,1707975033996,-200.0,0.00039348,20]
[314097033,1707975034006,-500.0,0.00039348,20]
[314097034,1707975034015,-2000.0,0.0003935,2]
[314097035,1707975034024,-200.0,0.0003935,2]
[314097036,1707975034033,-2000.0,0.0003935,2]
[314097037,1707975034043,-200.0,0.0003935,2]
[314097038,1707975034052,-200.0,0.00039401,20]
[314097039,1707975034061,-655.2,0.00039416,7]
[314097040,1707975034071,-500.0,0.00039416,7]
[314097041,1707975034080,-500.0,0.00039416,7]
[314097042,1707975034089,-500.0,0.00039416,7]
[314097043,1707975034098,-500.0,0.00039416,7]
[314097044,1707975034107,-500.0,0.00039416,7]
[314097045,1707975034116,-500.0,0.00039416,7]
[314097046,1707975034126,-500.0,0.00039416,7]
[314097047,1707975034135,-268.80094881,0.00039416,7]
[314097055,1707975037626,-250.0,0.00035464,2]
[314097056,1707975037636,-217.298,0.00038508,2]
[314097057,1707975037645,-231.19905119,0.00039416,7]
[314097058,1707975037654,-818.97,0.00039416,7]
[314097059,1707975037664,-500.0,0.00039416,7]
[314097060,1707975037673,-500.0,0.00039416,7]
[314097061,1707975037684,-500.0,0.00039416,7]
[314097062,1707975037693,-500.0,0.00039416,7]
[314097063,1707975037702,-500.0,0.00039416,7]
[314097064,1707975037711,-500.0,0.00039416,7]
[314097065,1707975037720,-500.0,0.00039416,7]
[314097066,1707975037731,-500.0,0.00039416,7]
[314097067,1707975037741,-500.0,0.00039416,7]
[314097068,1707975037750,-500.0,0.00039416,7]
[314097069,1707975037760,-500.0,0.00039416,7]
[314097070,1707975037769,-540.31,0.00039416,7]
[314097071,1707975037779,-500.0,0.00039416,7]
[314097072,1707975037790,-500.0,0.00039417,7]
[314097073,1707975037801,-500.0,0.00039417,7]
[314097074,1707975037810,-500.0,0.00039417,7]
[314097075,1707975037819,-500.0,0.00039417,7]
[314097076,1707975037830,-500.0,0.00039417,7]
[314097077,1707975037839,-177.34,0.00039448,2]
[314097078,1707975037848,-3316.12830692,0.0003945,2]
[314097079,1707975037858,-150.90187124,0.0003945,2]
[314097080,1707975037868,-200.0,0.00039454,20]
[314097081,1707975037878,-13895.46675095,0.00039463,7]
[314097082,1707975037890,-2614.7562519,0.00039463,7]
[314097085,1707975037919,-707.0,0.00038508,2]
[314097087,1707975037928,-1869.77699715,0.00039463,7]
[314097089,1707975037937,-151.021518,0.00039498,20]
[314097091,1707975037946,-200.0,0.00039507,20]
[314097093,1707975037956,-531.0,0.00039517,7]
[314097095,1707975037965,-500.0,0.00039517,7]
[314097097,1707975037975,-153.701744,0.00039522,2]
[314097099,1707975037984,-200.0,0.0003956,15]
[314097101,1707975037993,-476.4972626,0.0003956,10]
[314097347,1707975040156,-763.557,0.00038508,2]
[314097349,1707975040166,-323.5027374,0.0003956,10]
[314097351,1707975040174,-200.0,0.0003956,20]
[314097353,1707975040184,-500.0,0.0003956,20]
[314097355,1707975040193,-1447.91754127,0.00039593,9]
[314097357,1707975040204,-151.021518,0.00039598,19]
[314097359,1707975040213,-211.0,0.0003961,2]
[314097361,1707975040222,-208.0,0.0003963,2]
[314097363,1707975040231,-204.0,0.00039661,9]
[314097365,1707975040240,-345.58,0.00039679,2]
[314097367,1707975040249,-500.0,0.00039681,2]
[314097369,1707975040258,-500.0,0.00039681,2]
[314097371,1707975040267,-500.0,0.00039681,2]
[314097373,1707975040276,-287.3215,0.00039681,2]
[314097375,1707975040285,-1000.0,0.00039681,2]
[314097377,1707975040294,-1000.0,0.00039681,2]
[314097379,1707975040304,-1000.0,0.00039681,2]
[314097381,1707975040313,-1000.0,0.00039681,2]
[314097383,1707975040324,-1000.0,0.00039681,2]
[314097385,1707975040333,-1000.0,0.00039681,2]
[314097387,1707975040343,-1000.0,0.00039681,2]
[314097389,1707975040352,-1000.0,0.00039681,2]
[314097391,1707975040361,-1000.0,0.00039681,2]
[314097393,1707975040371,-425.0563,0.00039681,2]
[314097395,1707975040380,-655.2,0.0003969,7]
[314097397,1707975040389,-500.0,0.0003969,7]
[314097399,1707975040398,-500.0,0.0003969,7]
[314097401,1707975040407,-500.0,0.0003969,7]
[314097403,1707975040416,-501.65,0.0003969,7]
[314097405,1707975040426,-500.0,0.0003969,7]
[314097407,1707975040435,-196.86087722,0.0003969,7]
[314097409,1707975040444,-500.0,0.0003969,7]
[314097411,1707975040453,-818.97,0.0003969,7]
[314097413,1707975040463,-500.0,0.0003969,7]
[314097415,1707975040472,-500.0,0.0003969,7]
[314097417,1707975040481,-500.0,0.0003969,7]
[314097419,1707975040490,-540.31,0.0003969,7]
[314097421,1707975040500,-500.0,0.0003969,7]
[314097423,1707975040508,-500.0,0.00039691,7]
[314097425,1707975040517,-500.0,0.00039691,7]
[314097427,1707975040527,-500.0,0.00039691,7]
[314097429,1707975040536,-500.0,0.00039691,7]
[314097431,1707975040546,-500.0,0.00039699,7]
[314097433,1707975040555,-737.22,0.00039699,7]
[314097435,1707975040564,-17245.03166122,0.000397,7]
[314097620,1707975042413,-1000.0,0.00038308,2]
[314097621,1707975042422,-96.16384348,0.00038508,2]
[314097622,1707975042434,-1135.83615652,0.00038508,2]
[314097623,1707975042442,-719.62155853,0.0003945,2]
[314097624,1707975042453,-2596.50674839,0.0003945,2]
[314097625,1707975042463,-28628.63793878,0.000397,7]
[314097626,1707975042473,-607.94008939,0.000397,2]
[314097627,1707975042482,-200.0,0.00039723,2]
[314097628,1707975042491,-550.0,0.00039726,7]
[314097629,1707975042500,-2000.0,0.00039743,2]
[314097630,1707975042510,-200.0,0.00039743,2]
[314097631,1707975042520,-2000.0,0.00039743,2]
[314097632,1707975042529,-200.0,0.00039743,2]
[314097633,1707975042539,-151.021518,0.00039748,21]
[314097634,1707975042548,-6559.531739,0.0003975,2]
[314097635,1707975042557,-882.0,0.0003977,20]
[314097636,1707975042567,-1267.0,0.0003977,20]
[314097637,1707975042576,-211.77232784,0.0003977,13]
[314097638,1707975042585,-154.10912841,0.0003977,5]
[314097639,1707975042594,-82382.6556388,0.0003978,5]
[314097640,1707975042604,-264.1135,0.0003978,3]
[314097641,1707975042613,-335.469811,0.00039785,2]
[314097642,1707975042622,-785.55502772,0.00039787,2]
[314097643,1707975042631,-44878.45088467,0.0003979,5]
[314097644,1707975042643,-10262.92843724,0.0003979,5]
[314097645,1707975042655,-264.1135013,0.0003979,5]
[314097646,1707975042666,-1317.38623165,0.0003979,5]
[314097647,1707975042752,-1305.0117275,0.0003979,5]
[314097652,1707975045793,-626.4758498,0.00038508,2]
[314097674,1707976231681,-300.0,0.000327,2]
[314097675,1707976231691,-58.1813563,0.000328,3]
[314097676,1707976233719,-18161.8186437,0.000328,3]
[314097677,1707976233730,-157.76495876,0.00033223,2]
[314097678,1707976233741,-1733.29934924,0.00033323,10]
[314097679,1707976233751,-2296.16647187,0.00033369,10]
[314097680,1707976233762,-396.75909692,0.00033392,10]
[314097681,1707976233776,-198.37954846,0.00033392,10]
[314097682,1707976233786,-204.0,0.00033755,2]
[314097683,1707976233796,-157.76495874,0.00034336,2]
[314097684,1707976233808,-157.76495874,0.00035449,2]
[314097685,1707976233818,-378.84,0.00036005,2]
[314097686,1707976233830,-3108.54294351,0.00036131,7]
[314097687,1707976233840,-227.0,0.0003623,2]
[314097688,1707976233850,-157.76495874,0.00036562,2]
[314097689,1707976233861,-154.0,0.000368,3]
[314097690,1707976233872,-154.0,0.000368,3]
[314097691,1707976233882,-250.0,0.00036927,2]
[314097692,1707976233892,-204.0,0.00037504,10]
[314097693,1707976233903,-157.76495874,0.00037674,2]
[314097694,1707976233913,-26416.88766936,0.0003769,3]
[314097695,1707976233924,-253.55,0.00037865,2]
[314097696,1707976233934,-250.0,0.00037873,2]
[314097697,1707976233944,-168.15,0.00037952,2]
[314097698,1707976233955,-154.0,0.00038,3]
[314097699,1707976233965,-154.0,0.00038,3]
[314097701,1707976233975,-743.48,0.00038043,2]
[314097703,1707976233986,-234.56,0.00038054,2]
[314097705,1707976233996,-164.22,0.00038072,2]
[314097707,1707976234007,-378.84,0.00038269,2]
[314097709,1707976234016,-425.26243768,0.00038285,2]
[314097711,1707976234029,-834.94756232,0.00038285,2]
[314097713,1707976234040,-256.52,0.00038285,2]
[314097715,1707976234051,-2000.0,0.00038285,2]
[314097718,1707976234061,-4731.29,0.00038285,2]
[314097720,1707976234072,-1433.93,0.00038285,2]
[314097722,1707976234081,-535.76,0.00038285,2]
[314097724,1707976234092,-250.0,0.00038285,111]
[314097726,1707976234102,-150.0,0.00038361,2]
[314097728,1707976234112,-10000.0,0.00038363,3]
[314097730,1707976234123,-1888.091,0.00038387,2]
[314097732,1707976234133,-814.0,0.00038387,2]
[314097734,1707976234147,-952.0,0.00038387,2]
[314097736,1707976234157,-217.298,0.00038387,2]
[314097738,1707976234167,-1231.0,0.00038387,2]
[314097739,1707976234178,-626.524,0.00038387,2]
[314097740,1707976234188,-343.0,0.00038387,2]
[314097741,1707976234199,-150.0,0.00038387,2]
[314097742,1707976234210,-2286.0,0.00038387,2]
[314097743,1707976234220,-17231.828,0.00038387,2]
[314097744,1707976234230,-200.0,0.00038387,2]
[314097745,1707976234242,-500.0,0.00038407,7]
[314097747,1707976234252,-152.0,0.00038561,3]
[314097749,1707976234262,-227.0,0.0003864,2]
[314097751,1707976234272,-509.94729347,0.00038681,7]
[314097754,1707976234282,-601.46541978,0.00038687,2]
[314097756,1707976234293,-152422.0,0.00038716,120]
[314097758,1707976234303,-157.76495874,0.00038787,2]
[314097760,1707976234313,-177.34,0.0003886,2]
[314097762,1707976234324,-1000.0,0.000389,2]
[314097764,1707976234334,-155.0,0.00039,2]
[314097766,1707976234344,-500.0,0.00039,2]
[314097769,1707976234355,-251.60177744,0.00039,2]
[314097771,1707976234365,-200.0,0.00039084,15]
[314097773,1707976234376,-200.0,0.00039135,20]
[314097775,1707976234386,-601.46541973,0.00039144,2]
[314097777,1707976234397,-200.0,0.00039219,20]
[314097779,1707976234408,-212.16,0.0003926,2]
[314097781,1707976234418,-154.0,0.000393,3]
[314097784,1707976234428,-154.0,0.000393,3]
[314097785,1707976234439,-800.0,0.00039302,10]
[314097786,1707976234449,-200.0,0.00039302,20]
[314097787,1707976234460,-500.0,0.00039302,20]
[314097788,1707976234661,-1330.91398422,0.00039329,2]
[314097789,1707976234675,-200.0,0.00039385,20]
[314097790,1707976234684,-177.34,0.00039408,2]
[314097791,1707976234693,-200.0,0.00039468,15]
[314097792,1707976234702,-200.0,0.00039468,20]
[314097793,1707976234712,-500.0,0.00039468,20]
[314097794,1707976234721,-10000.0,0.00039498,3]
[314097795,1707976234731,-253.55,0.00039509,2]
[314097796,1707976234740,-1330.91398422,0.00039543,2]
[314097797,1707976234749,-508.2146335,0.00039548,2]
[314097798,1707976234758,-151.021518,0.00039598,18]
[314097799,1707976234767,-238.69065003,0.0003966,2]
[314097800,1707976234776,-151.021518,0.00039698,19]
[314097801,1707976234785,-2500.0,0.00039699,2]
[314097802,1707976234797,-461.1969,0.000397,2]
[314097803,1707976234806,-904.94846332,0.000397,9]
[314097804,1707976234815,-550.0,0.00039726,7]
[314097805,1707976234824,-2979.24587,0.00039726,2]
[314097806,1707976234833,-45022.91081173,0.0003973,12]
[314097807,1707976234842,-577.54308493,0.0003976,2]
[314097808,1707976234851,-506.05714573,0.00039769,2]
[314097809,1707976234860,-864.0,0.0003977,20]
[314097810,1707976234869,-194.12463378,0.0003978,13]
[314097811,1707976234878,-3316.12830692,0.00039786,2]
[314097812,1707976234888,-150.90187124,0.00039786,2]
[314097813,1707976234897,-2000.0,0.0003979,2]
[314097814,1707976234906,-200.0,0.0003979,2]
[314097815,1707976234915,-2000.0,0.0003979,2]
[314097816,1707976234924,-200.0,0.0003979,2]
[314097817,1707976234933,-151.021518,0.00039798,20]
[314097818,1707976234942,-500.0,0.00039799,7]
[314097819,1707976234952,-500.0,0.00039799,7]
[314097820,1707976234961,-573.3,0.00039799,7]
[314097821,1707976234971,-500.0,0.00039799,7]
[314097822,1707976234981,-500.0,0.00039799,7]
[314097823,1707976234991,-500.0,0.00039799,7]
[314097824,1707976235000,-500.0,0.00039799,7]
[314097825,1707976235010,-500.0,0.00039799,7]
[314097826,1707976235020,-500.0,0.00039799,7]
[314097827,1707976235029,-500.0,0.00039799,7]
[314097828,1707976235038,-500.0,0.00039799,7]
[314097829,1707976235047,-500.0,0.00039799,7]
[314097830,1707976235056,-500.0,0.00039799,7]
[314097831,1707976235065,-675.78,0.00039799,7]
[314097832,1707976235075,-500.0,0.00039799,7]
[314097833,1707976235084,-500.0,0.00039799,7]
[314097834,1707976235093,-500.0,0.00039799,7]
[314097835,1707976235102,-500.0,0.00039799,7]
[314097836,1707976235111,-500.0,0.00039799,7]
[314097837,1707976235120,-500.0,0.00039799,7]
[314097838,1707976235131,-750.72,0.00039799,7]
[314097839,1707976235144,-500.0,0.00039799,7]
[314097840,1707976235154,-500.0,0.00039799,7]
[314097841,1707976235163,-500.0,0.00039799,7]
[314097842,1707976235172,-500.0,0.00039799,7]
[314097843,1707976235182,-500.0,0.00039799,7]
[314097844,1707976235192,-500.0,0.00039799,7]
[314097845,1707976235201,-500.0,0.00039799,7]
[314097846,1707976235210,-270220.93429982,0.000398,4]
[314097847,1707976235220,-551.00538983,0.000398,4]
[314097848,1707976235229,-500.0,0.0003985,7]
[314097849,1707976235240,-675.78,0.0003985,7]
[314097850,1707976235249,-69593.22659529,0.0003985,5]
[314097851,1707976235263,-2958.13277643,0.0003985,5]
[314097852,1707976235274,-907.0,0.0003985,5]
[314097853,1707976235290,-7531.64846015,0.0003985,5]
[314097854,1707976235318,-875.12039948,0.0003985,5]
[314097855,1707976235456,-410.28163605,0.0003985,5]
[314097856,1707976235465,-698.27113575,0.00039858,2]
[314097857,1707976235475,-155.4651269,0.0003986,3]
[314097858,1707976235485,-2132.5763162,0.0003986,5]
[314097859,1707976235498,-5202.08000001,0.0003986,5]
[314097868,1707976237612,-601.46541973,0.00039601,2]
[314097869,1707976237621,-549.41,0.00039799,7]
[314097870,1707976237630,-1272.97163027,0.0003986,5]
[314097871,1707976237643,-630.775,0.0003986,5]
[314097872,1707976237670,-354.77901617,0.0003986,5]
[314097873,1707976237681,-2039.91657473,0.0003986,5]
[314097874,1707976237693,-279.39887565,0.0003986,5]
[314097875,1707976237705,-342.79972744,0.0003986,5]
[314097876,1707976237729,-152295.52259453,0.0003986,5]
[314097877,1707976237738,-500.0,0.00039869,7]
[314097878,1707976237749,-675.78,0.00039869,7]
[314097879,1707976237758,-155.861271,0.0003987,7]
[314097880,1707976237768,-295.0,0.0003987,7]
[314097881,1707976237777,-151.0,0.0003987,7]
[314097882,1707976237786,-151.0,0.0003987,7]
[314097883,1707976237795,-151.0,0.0003987,7]
[314097884,1707976237804,-151.0,0.0003987,7]
[314097885,1707976237813,-151.0,0.0003987,7]
[314097886,1707976237822,-151.0,0.0003987,7]
[314097887,1707976237831,-246826.229602,0.0003987,5]
[314097888,1707976237840,-151.0,0.0003987,7]
[314097889,1707976237849,-159.554165,0.0003987,7]
[314097890,1707976237859,-159.554165,0.0003987,7]
[314097891,1707976237868,-151.0,0.0003987,7]
[314097892,1707976237876,-500.0,0.00039879,7]
[314097893,1707976237886,-500.0,0.00039879,7]
[314097894,1707976237895,-675.78,0.00039879,7]
[314097895,1707976237903,-675.78,0.00039879,7]
[314097896,1707976237913,-368735.57537795,0.0003988,2]
[314097897,1707976237922,-7053.60221491,0.0003988,3]
[314097898,1707976237931,-107078.82243729,0.0003988,2]
[314097899,1707976237939,-151.0,0.0003988,7]
[314097900,1707976237948,-158.796483,0.0003988,7]
[314097901,1707976237957,-151.0,0.0003988,7]
[314097902,1707976237966,-151.0,0.0003988,7]
[314097903,1707976237975,-151.0,0.0003988,7]
[314097904,1707976237984,-151.0,0.0003988,7]
[314097905,1707976237993,-178.588131,0.0003988,7]
[314097906,1707976238002,-159.554165,0.0003988,7]
[314097907,1707976238010,-159.554165,0.0003988,7]
[314097909,1707976238019,-151.0,0.0003988,7]
[314097910,1707976238028,-151.021518,0.00039898,19]
[314097912,1707976238037,-5000.0,0.00039899,3]
[314097914,1707976238046,-157.76495874,0.000399,2]
[314097916,1707976238055,-205.8867609,0.000399,2]
[314097918,1707976238064,-242.3541789,0.000399,2]
[314097920,1707976238073,-159.68625956,0.000399,2]
[314097922,1707976238082,-236.47576974,0.000399,2]
[314097924,1707976238091,-353.52,0.00039956,2]
[314097926,1707976238099,-500.0,0.00039978,7]
[314097927,1707976238109,-675.78,0.00039978,7]
[314097929,1707976238118,-151.0,0.00039979,7]
[314097931,1707976238128,-151.0,0.00039979,7]
[314097933,1707976238141,-151.0,0.00039979,7]
[314097935,1707976238150,-159.554165,0.00039979,7]
[314097936,1707976238159,-159.554165,0.00039979,7]
[314097938,1707976238169,-82275.4098674,0.0003998,5]
[314097940,1707976238178,-200.0,0.00039987,4]
[314097942,1707976238187,-82275.4098674,0.0003999,5]
[314097943,1707976238196,-194.12463375,0.00039995,13]
[314097945,1707976238205,-698.27113575,0.00039997,2]
[314097947,1707976238214,-3491.35567875,0.00039997,2]
[314097949,1707976238223,-151.021518,0.00039998,19]
[314097950,1707976238233,-500.0,0.00039999,7]
[314097952,1707976238242,-500.0,0.00039999,7]
[314097954,1707976238251,-500.0,0.00039999,7]
[314097955,1707976238260,-500.0,0.00039999,7]
[314097957,1707976238269,-500.0,0.00039999,7]
[314097959,1707976238279,-500.0,0.00039999,7]
[314097961,1707976238288,-500.0,0.00039999,7]
[314097963,1707976238297,-5000.0,0.00039999,2]
[314097964,1707976238305,-1000.0,0.00039999,2]
[314097966,1707976238314,-675.78,0.00039999,7]
[314097968,1707976238323,-675.78,0.00039999,7]
[314097969,1707976238333,-675.78,0.00039999,7]
[314097971,1707976238342,-675.78,0.00039999,7]
[314097973,1707976238351,-675.78,0.00039999,7]
[314097975,1707976238360,-675.78,0.00039999,7]
[314097977,1707976238369,-675.78,0.00039999,7]
[314097979,1707976238378,-170.20308447,0.0004,2]
[314097980,1707976238387,-2860.93219222,0.0004,2]
[314097982,1707976238396,-646164.80554905,0.0004,3]
[314097984,1707976238405,-7497.3343392,0.0004,3]
[314097985,1707976238414,-653907.29477589,0.0004,30]
[314097987,1707976238426,-28047.6139803,0.0004,30]
[314097989,1707976238437,-2614.7562519,0.0004,30]
[314097992,1707976238448,-377.44548477,0.0004,30]
[314097994,1707976238468,-15884.6766563,0.0004,30]
[314097996,1707976238480,-858.04276776,0.0004,30]
[314097999,1707976238497,-1109.17543253,0.0004,30]
[314098168,1707976240225,-662.68309162,0.0004,30]
[314098175,1707976240286,-1476.86277935,0.0004,30]
[314098258,1707976241054,-3316.12830692,0.00039857,2]
[314098260,1707976241063,-87743.25173854,0.0004,30]
[314098266,1707976241116,-514.92279176,0.0004,30]
[314098273,1707976241172,-982.24203917,0.0004,30]
[314098275,1707976241185,-558.89350208,0.0004,30]
[314098411,1707976242628,-1495.15701121,0.0004,30]
[314098412,1707976242639,-21396.27285977,0.0004,30]
[314098413,1707976242651,-1149.30704136,0.0004,30]
[314098414,1707976242705,-465.15169898,0.0004,30]
[314098415,1707976242719,-333.31950704,0.0004,30]
[314098417,1707976242807,-271.35000001,0.0004,30]
[314098418,1707976242820,-1846.08,0.0004,30]
[314098485,1707976245663,-500.0,0.00039879,31]
[314098486,1707976245673,-505.84606909,0.00039879,31]
[314098487,1707976245683,-412.61718304,0.00039879,31]
[314098488,1707976245836,-87.38281696,0.00039879,31]
[314098489,1707976245846,-500.0,0.00039879,31]
[314098490,1707976245855,-500.0,0.00039879,31]
[314098491,1707976245865,-500.0,0.00039879,31]
[314098492,1707976245874,-500.0,0.00039879,31]
[314098493,1707976245883,-128.00254126,0.00039879,31]
[314098494,1707976245896,-371.99745874,0.00039879,31]
[314098495,1707976245909,-202.85969306,0.00039879,31]
[314098496,1707976245925,-297.14030694,0.00039879,31]
[314098497,1707976245935,-500.0,0.00039879,31]
[314098498,1707976245944,-500.0,0.00039879,31]
[314098499,1707976245953,-500.0,0.00039879,31]
[314098500,1707976245962,-500.0,0.00039879,31]
[314098501,1707976245971,-500.0,0.00039879,31]
[314098502,1707976245980,-500.0,0.00039879,31]
[314098503,1707976245990,-500.0,0.00039879,31]
[314098504,1707976246000,-500.0,0.00039879,31]
[314098505,1707976246009,-500.0,0.00039879,31]
[314098506,1707976246018,-500.0,0.00039879,31]
[314098507,1707976246027,-500.0,0.00039879,31]
[314098508,1707976246036,-500.0,0.00039879,31]
[314098509,1707976246045,-500.0,0.00039879,31]
[314098510,1707976246054,-500.0,0.00039879,31]
[314098511,1707976246064,-500.0,0.00039879,31]
[314098512,1707976246073,-500.0,0.00039879,31]
[314098513,1707976246082,-500.0,0.00039879,31]
[314098514,1707976246091,-500.0,0.00039879,31]
[314098515,1707976246100,-500.0,0.00039879,31]
[314098516,1707976246109,-500.0,0.00039879,31]
[314098517,1707976246118,-500.0,0.00039879,31]
[314098518,1707976246128,-500.0,0.00039879,31]
[314098519,1707976246138,-500.0,0.00039879,31]
[314098520,1707976246149,-483.22247693,0.00039879,31]
[314098521,1707976246163,-16.77752307,0.00039879,31]
[314098522,1707976246173,-500.0,0.00039879,31]
[314098523,1707976246183,-500.0,0.00039879,31]
[314098524,1707976246193,-500.0,0.00039879,31]
[314098525,1707976246202,-500.0,0.00039879,31]
[314098526,1707976246211,-500.0,0.00039879,31]
[314098527,1707976246221,-500.0,0.00039879,31]
[314098528,1707976246231,-500.0,0.00039879,31]
[314098529,1707976246240,-500.0,0.00039879,31]
[314098530,1707976246250,-197.02463981,0.00039879,31]
[314098531,1707976270183,290000.0,0.00023,2]
[314098532,1707976270209,82650.82072572,0.00023,2]